bitfinex-derivatives/quotes_SOLF0:USTF0_20260104
["timestamp","ask_amount","ask_price","bid_price","bid_amount"]
[1767485422786,0.05260724,134.5,134.47,0.05230556]
[1767485425494,3.70039255,134.59,134.48,1.8615571]
[1767485425693,3.70039255,134.59,134.49,1.8615571]
[1767485425888,6.6895,134.6,134.51,1.8615571]
[1767485426090,3.70039255,134.62,134.51,1.8615571]
[1767485426488,0.05365576,134.58,134.55,0.05653769]
[1767485426889,107.75519255,134.61,134.55,0.05653769]
[1767485426890,3.70039255,134.61,134.55,0.05653769]
[1767485427097,5.18039255,134.61,134.55,0.05653769]
[1767485427296,3.70039255,134.6,134.55,0.05653769]
[1767485427495,3.70039255,134.66,134.55,106.01141705]
[1767485427687,3.70039255,134.66,134.57,1.86137936]
[1767485428090,0.05594622,134.63,134.6,0.05547948]
[1767485430194,3.74416271,134.62,134.53,1.86124962]
[1767485430596,3.74416271,134.61,134.5,1.91714002]
[1767485430790,3.74416271,134.59,134.5,87.88]
[1767485431097,3.74416271,134.57,134.47,1.91714002]
[1767485431300,0.04883466,134.56,134.47,1.91714002]
[1767485431502,3.74416271,134.57,134.47,1.91714002]
[1767485431696,3.74416271,134.56,134.47,1.91714002]
[1767485431906,3.74416271,134.56,134.45,97.3273523]
[1767485432109,3.74416271,134.56,134.45,99.29296827]
[1767485432491,0.05415466,134.52,134.45,99.29296827]
[1767485432999,0.05415466,134.52,134.47,0.05072961]
[1767485433401,3.61556279,134.62,134.49,1.96549633]
[1767485433596,3.61556279,134.62,134.51,1.96549633]
[1767485434493,0.04781647,134.58,134.55,0.04752891]
[1767485437396,0.04781647,134.58,134.5,87.86]
[1767485437691,0.04781647,134.58,134.52,2.01258635]
[1767485437901,3.61556279,134.67,134.57,1.96476988]
[1767485438398,107.59276279,134.71,134.58,1.96462998]
[1767485438598,3.61556279,134.7,134.58,1.96462998]
[1767485438796,3.61556279,134.7,134.6,6.6894]
[1767485438999,3.61556279,134.74,134.63,2.02071749]
[1767485439206,3.61556279,134.73,134.63,1.96462998]
[1767485439998,114.25916279,134.73,134.63,1.96462998]
[1767485440300,0.05675388,134.69,134.67,0.05230956]
[1767485441009,5.15231667,134.69,134.6,87.86]
[1767485441208,3.61556279,134.69,134.6,87.86]
[1767485441504,110.6708,134.7,134.57,2.01666454]
[1767485441505,3.61556279,134.66,134.57,2.01666454]
[1767485441898,0.05643083,134.63,134.6,0.05459474]
[1767485442301,0.05643083,134.63,134.55,87.84]
[1767485442504,3.67199362,134.63,134.53,4.78708171]
[1767485442699,3.61556279,134.63,134.53,2.01652941]
[1767485443311,91.43556279,134.63,134.53,2.01652941]
[1767485443611,0.05426635,134.59,134.53,2.01652941]
[1767485444197,3.61556279,134.63,134.54,2.07053417]
[1767485444709,3.61556279,134.67,134.57,2.07053417]
[1767485445097,87.82,134.69,134.58,2.07053417]
[1767485445298,87.82,134.69,134.61,0.05501867]
[1767485445499,114.28576279,134.7,134.61,0.05501867]
[1767485445704,98.12006279,134.7,134.58,108.91458647]
[1767485445909,10.30006279,134.7,134.58,108.91458647]
[1767485446119,10.30006279,134.7,134.59,2.0703099]
[1767485446409,0.05328022,134.65,134.63,0.05127693]
[1767485446613,0.05193452,134.65,134.63,0.05127693]
[1767485449312,87.82,134.72,134.64,1.48]
[1767485449507,87.82,134.72,134.63,2.01747477]
[1767485449712,3.61556279,134.71,134.6,2.01747477]
[1767485449902,3.61556279,134.71,134.61,2.01747477]
[1767485450406,0.04932054,134.67,134.61,2.01747477]
[1767485451110,0.04932054,134.67,134.58,9.4608523]
[1767485451304,3.61556279,134.69,134.63,0.05351905]
[1767485451610,0.05454119,134.67,134.63,0.05351905]
[1767485456103,3.61556279,134.72,134.63,2.06942834]
[1767485456309,3.61556279,134.72,134.63,2.01590929]
[1767485456509,10.29986279,134.71,134.6,6.6893]
[1767485456703,10.29986279,134.71,134.6,8.6504046]
[1767485457220,3.61556279,134.71,134.64,0.04857762]
[1767485457713,3.61556279,134.67,134.57,106.08942174]
[1767485458708,0.04898258,134.63,134.57,2.00942174]
[1767485459111,0.04898258,134.63,134.59,0.04945844]
[1767485460412,6.6851,134.69,134.6,1.95828249]
[1767485460615,3.83326122,134.68,134.57,1.95828249]
[1767485460823,108.45408691,134.72,134.62,1.95828249]
[1767485460824,6.6836,134.72,134.62,1.95828249]
[1767485461115,3.83326122,134.74,134.63,1.95828249]
[1767485461417,107.87309737,134.7,134.6,1.95804972]
[1767485461613,3.83326122,134.69,134.59,2.00732384]
[1767485461806,10.51636122,134.73,134.61,8.69592384]
[1767485462010,195.59226122,134.73,134.61,8.69592384]
[1767485462214,3.83326122,134.72,134.61,8.69592384]
[1767485462415,10.51706122,134.72,134.63,6.6879]
[1767485462608,0.05435707,134.69,134.66,0.05479264]
[1767485463013,3.83326122,134.67,134.59,87.8]
[1767485463524,3.83326122,134.66,134.55,2.06160052]
[1767485463817,3.83326122,134.66,134.51,373.30671626]
[1767485463818,3.83326122,134.65,134.54,87.8]
[1767485464036,0.05373814,134.61,134.58,0.05456819]
[1767485464325,3.88699936,134.61,134.51,17.39123335]
[1767485464524,3.83326122,134.59,134.49,2.11588612]
[1767485464714,10.52366122,134.59,134.49,2.11588612]
[1767485465309,0.04862604,134.55,134.53,0.04754961]
[1767485466114,0.04862604,134.55,134.48,94.4951]
[1767485467127,3.83326122,134.61,134.51,106.28979254]
[1767485467426,3.83326122,134.6,134.48,194.0647665]
[1767485467922,4.48488691,134.63,134.51,2.1139665]
[1767485468134,87.8,134.62,134.53,2.1139665]
[1767485468315,0.05021594,134.58,134.56,0.04835989]
[1767485469114,3.83326122,134.64,134.56,0.04835989]
[1767485469321,91.63326122,134.64,134.56,0.04835989]
[1767485469822,3.83326122,134.63,134.56,0.04835989]
[1767485470323,0.05367218,134.61,134.56,0.04835989]
[1767485470718,3.8869334,134.61,134.56,0.04835989]
[1767485471115,0.05367218,134.61,134.56,0.04835989]
[1767485475421,3.8869334,134.61,134.56,0.04835989]
[1767485476416,3.83326122,134.59,134.5,6.6944]
[1767485476930,3.83326122,134.59,134.48,2.1136975]
[1767485477727,0.05445223,134.55,134.52,0.04816229]
[1767485478031,0.05445223,134.55,134.45,194.15209572]
[1767485478241,3.83326122,134.57,134.46,2.21009706]
[1767485478932,0.04958873,134.53,134.5,0.05358271]
[1767485481032,3.83326122,134.57,134.5,0.05358271]
[1767485481928,0.04948887,134.55,134.5,0.05358271]
[1767485484644,3.83326122,134.61,134.51,2.20978556]
[1767485484835,3.83326122,134.61,134.52,2.16029669]
[1767485485731,0.04949763,134.58,134.55,0.04699486]
[1767485486629,0.04949763,134.58,134.51,6.6938]
[1767485486839,0.04949763,134.58,134.5,87.84]
[1767485487043,3.88275885,134.58,134.49,8.85499547]
[1767485487236,3.83326122,134.58,134.49,8.85499547]
[1767485487738,0.04813292,134.55,134.52,0.05175498]
[1767485488138,0.04813292,134.55,134.46,200.9054406]
[1767485488433,3.83326122,134.56,134.46,96.7432406]
[1767485489242,0.05514238,134.52,134.5,0.05712331]
[1767485489432,0.05514238,134.52,134.46,94.5361]
[1767485489634,0.05514238,134.52,134.43,200.98826614]
[1767485489839,3.83326122,134.54,134.43,90.10416614]
[1767485489840,3.83326122,134.53,134.43,90.10416614]
[1767485490538,0.0513478,134.49,134.47,0.04709706]
[1767485492141,0.0513478,134.49,134.43,87.84]
[1767485492534,3.68606141,134.49,134.4,9.01586122]
[1767485492728,3.63471361,134.49,134.4,9.01586122]
[1767485493142,0.05106825,134.46,134.43,0.05066917]
[1767485499246,3.63471361,134.52,134.43,3.79624899]
[1767485499452,3.63471361,134.52,134.43,2.26557982]
[1767485500244,0.05571955,134.49,134.43,2.26557982]
[1767485500445,0.05571955,134.49,134.46,0.05210944]
[1767485503248,0.05571955,134.49,134.42,6.6982]
[1767485504355,0.05571955,134.49,134.44,0.05311758]
[1767485506251,3.69043316,134.49,134.44,0.05311758]
[1767485511161,3.69043316,134.49,134.4,87.88]
[1767485511359,3.63471361,134.49,134.4,87.88]
[1767485512057,3.63471361,134.49,134.4,94.5791]
[1767485512458,0.05629493,134.46,134.4,94.5791]
[1767485512850,0.05629493,134.46,134.4,6.6991]
[1767485513051,0.05629493,134.46,134.39,2.31790208]
[1767485514452,3.69100854,134.46,134.36,9.07229073]
[1767485514761,0.05212184,134.42,134.36,2.37099073]
[1767485515653,0.05212184,134.42,134.37,6.7007]
[1767485517956,3.63471361,134.46,134.38,9.07122792]
[1767485519066,0.05636683,134.43,134.41,0.04914292]
[1767485519567,0.05636683,134.43,134.35,90.27114448]
[1767485520870,0.05636683,134.43,134.35,96.97274448]
[1767485521064,0.05636683,134.43,134.36,2.37533398]
[1767485521264,0.05636683,134.43,134.37,2.37538997]
[1767485521563,0.05636683,134.43,134.39,6.6995]
[1767485521759,0.05636683,134.43,134.39,9.07488997]
[1767485522560,3.78164931,134.5,134.41,2.31907849]
[1767485523669,3.78164931,134.53,134.44,2.37113888]
[1767485523872,3.78164931,134.53,134.44,2.31913321]
[1767485524567,3.78164931,134.53,134.44,9.01653321]
[1767485524767,0.05423421,134.5,134.47,0.04860425]
[1767485525469,3.78164931,134.56,134.47,0.04860425]
[1767485525671,3.78164931,134.56,134.46,2.31924077]
[1767485526172,3.78164931,134.56,134.46,9.01524077]
[1767485526467,3.78164931,134.56,134.5,0.0494201]
[1767485526670,0.05704769,134.52,134.5,0.0494201]
[1767485529173,0.05704769,134.52,134.46,2.31924077]
[1767485530467,0.05704769,134.52,134.48,0.04728136]
[1767485531071,3.78164931,134.57,134.48,2.41663235]
[1767485531373,3.78164931,134.57,134.48,2.36935099]
[1767485531769,3.78164931,134.56,134.46,6.6963]
[1767485531969,0.04789732,134.52,134.5,0.05528592]
[1767485532667,3.78164931,134.56,134.5,0.05528592]
[1767485533474,3.78164931,134.59,134.5,2.36815432]
[1767485533676,3.78164931,134.59,134.5,2.3128684]
[1767485533878,0.052513,134.56,134.53,0.0553291]
[1767485536974,87.9,134.62,134.53,2.36858842]
[1767485537171,3.78164931,134.63,134.53,5.08168961]
[1767485537371,3.78164931,134.66,134.54,104.1045]
[1767485537873,3.78164931,134.66,134.56,104.0876]
[1767485538077,3.78164931,134.7,134.58,104.0725]
[1767485538378,3.78164931,134.7,134.6,0.05183934]
[1767485538681,3.78164931,134.7,134.59,113.52423029]
[1767485538879,3.78164931,134.69,134.58,87.88]
[1767485539473,0.05483139,134.65,134.62,0.04741509]
[1767485540379,0.05483139,134.65,134.58,87.88]
[1767485540574,3.8364807,134.65,134.58,87.88]
[1767485541676,3.8364807,134.65,134.6,0.05643028]
[1767485541980,0.05483139,134.65,134.6,0.05643028]
[1767485542482,3.8364807,134.65,134.6,0.05643028]
[1767485542690,3.8364807,134.65,134.58,87.88]
[1767485542896,3.8364807,134.65,134.54,2.76843029]
[1767485542897,3.8364807,134.65,134.54,90.62843029]
[1767485543098,3.78164931,134.65,134.54,90.62843029]
[1767485543379,3.78164931,134.65,134.54,201.42533029]
[1767485544075,10.46714931,134.68,134.58,0.04882543]
[1767485544274,10.46714931,134.68,134.57,106.84843029]
[1767485544275,3.78164931,134.68,134.57,106.84843029]
[1767485545284,0.04817263,134.64,134.61,0.05030926]
[1767485545991,3.78164931,134.71,134.61,0.05030926]
[1767485546177,3.78164931,134.71,134.6,2.76843029]
[1767485546781,3.78164931,134.71,134.6,6.6891]
[1767485546985,0.05261723,134.67,134.64,0.0566419]
[1767485547185,3.83426654,134.67,134.59,87.84]
[1767485547385,3.83426654,134.67,134.57,104.08]
[1767485547386,3.83426654,134.67,134.57,6.6904]
[1767485547686,3.78164931,134.67,134.57,87.84]
[1767485548390,0.0490173,134.63,134.57,87.84]
[1767485548578,3.78164931,134.67,134.59,0.04764836]
[1767485549676,0.04831069,134.64,134.59,0.04764836]
[1767485552090,3.78869197,134.64,134.54,6.6924]
[1767485552389,3.74038128,134.63,134.51,191.9455]
[1767485553275,0.05223417,134.58,134.56,0.0510315]
[1767485553480,0.05648657,134.58,134.56,0.0510315]
[1767485553876,3.74038128,134.63,134.56,0.0510315]
[1767485554077,3.74038128,134.66,134.56,0.0510315]
[1767485554279,3.74038128,134.66,134.55,104.096]
[1767485554483,3.74038128,134.66,134.56,87.82]
[1767485555085,0.04701093,134.62,134.6,0.0554341]
[1767485555787,0.04701093,134.62,134.56,87.82]
[1767485556882,0.04701093,134.62,134.58,0.0552739]
[1767485564596,3.74038128,134.6,134.47,194.74593029]
[1767485564784,3.74038128,134.59,134.47,87.82]
[1767485564987,104.0618,134.6,134.47,87.82]
[1767485564988,3.74038128,134.57,134.47,94.5157]
[1767485565190,3.74038128,134.57,134.48,104.1513]
[1767485565394,3.74038128,134.6,134.49,104.1432]
[1767485565596,3.74038128,134.6,134.53,0.05003787]
[1767485566693,0.05493439,134.58,134.53,0.05003787]
[1767485570705,3.79531567,134.58,134.49,6.6947]
[1767485570894,3.74038128,134.58,134.49,6.6947]
[1767485571099,3.74038128,134.55,134.45,6.6966]
[1767485571801,0.0566824,134.51,134.49,0.04752938]
[1767485572199,10.43098128,134.58,134.49,0.04752938]
[1767485572400,3.74038128,134.57,134.46,104.164]
[1767485573203,3.74038128,134.59,134.5,0.04962081]
[1767485573408,3.74038128,134.57,134.45,106.93853029]
[1767485573797,3.74038128,134.56,134.45,106.93853029]
[1767485574199,3.74038128,134.56,134.44,192.0214]
[1767485574408,3.74038128,134.55,134.45,6.6967]
[1767485574599,0.05642224,134.51,134.49,0.05207825]
[1767485575202,3.79680352,134.51,134.43,9.46613029]
[1767485575503,3.74038128,134.5,134.37,104.2342]
[1767485575709,3.74038128,134.49,134.36,192.0796]
[1767485575908,10.43608128,134.48,134.38,6.7]
[1767485576111,3.74038128,134.47,134.38,6.7]
[1767485576312,0.04928048,134.44,134.41,0.0512501]
[1767485576811,10.43498128,134.5,134.41,0.0512501]
[1767485577012,10.43498128,134.5,134.38,104.2252]
[1767485577613,3.74038128,134.49,134.39,6.6995]
[1767485578008,0.0500401,134.45,134.43,0.0528178]
[1767485579621,10.43398128,134.52,134.43,0.0528178]
[1767485579815,10.43398128,134.52,134.41,87.86]
[1767485580314,3.73024831,134.55,134.44,106.94963029]
[1767485580910,0.05514069,134.51,134.48,0.04686534]
[1767485582117,0.05514069,134.51,134.44,6.6974]
[1767485582715,3.785389,134.51,134.42,6.6982]
[1767485582917,3.73024831,134.51,134.42,6.6982]
[1767485583421,0.05118303,134.48,134.45,0.050364]
[1767485585326,0.05118303,134.48,134.41,87.86]
[1767485585528,0.05118303,134.48,134.41,192.0619]
[1767485585918,0.05118303,134.48,134.41,94.5588]
[1767485586326,0.05118303,134.48,134.38,87.88]
[1767485586627,3.73024831,134.49,134.43,0.04875758]
[1767485586628,0.05717997,134.44,134.43,0.04875758]
[1767485586927,3.73024831,134.49,134.43,0.04875758]
[1767485588027,0.05679107,134.47,134.43,0.04875758]
[1767485592931,3.78703938,134.47,134.38,94.5802]
[1767485593122,3.73024831,134.47,134.38,94.5802]
[1767485593933,0.05291543,134.44,134.38,94.5802]
[1767485594127,0.05291543,134.44,134.4,0.05700353]
[1767485594527,3.73024831,134.5,134.4,1.53700353]
[1767485594730,3.73024831,134.5,134.39,104.2183]
[1767485595432,0.05249433,134.46,134.43,0.04691768]
[1767485598430,3.78274264,134.46,134.38,87.88]
[1767485598737,3.78274264,134.46,134.35,87.9]
[1767485598930,3.73024831,134.46,134.35,87.9]
[1767485599136,3.73024831,134.46,134.36,87.9]
[1767485599636,0.05375633,134.42,134.36,87.9]
[1767485599934,0.05375633,134.42,134.4,0.0470063]
[1767485600334,0.05375633,134.42,134.33,104.2656]
[1767485600539,3.73024831,134.44,134.33,192.1656]
[1767485600725,3.73024831,134.47,134.35,104.251]
[1767485600935,3.73024831,134.47,134.36,104.2434]
[1767485601135,3.73024831,134.47,134.38,6.7]
[1767485601332,3.73024831,134.47,134.38,94.6]
[1767485601539,0.05045346,134.44,134.38,94.6]
[1767485601935,0.05045346,134.44,134.38,87.9]
[1767485602135,3.73024831,134.5,134.4,0.05339374]
[1767485602335,3.73024831,134.5,134.39,104.2184]
[1767485602734,3.73024831,134.5,134.41,6.6985]
[1767485603244,0.05067263,134.47,134.44,0.05592064]
[1767485603746,87.92,134.53,134.44,0.05592064]
[1767485603930,10.42284831,134.54,134.43,192.1098]
[1767485604128,3.73024831,134.53,134.43,87.92]
[1767485604430,10.42344831,134.53,134.43,87.92]
[1767485604938,0.0517732,134.49,134.47,0.04981241]
[1767485607636,0.0517732,134.49,134.43,87.92]
[1767485608335,3.73024831,134.58,134.46,104.1668]
[1767485609349,0.05326943,134.53,134.47,6.6956]
[1767485609550,0.05326943,134.53,134.45,104.1711]
[1767485610046,0.05326943,134.53,134.48,0.04978919]
[1767485612240,10.60855204,134.58,134.48,87.94978919]
[1767485612441,10.60855204,134.58,134.48,94.5951]
[1767485612950,3.5959083,134.57,134.48,94.5951]
[1767485613142,3.5959083,134.57,134.48,87.9]
[1767485613345,3.5959083,134.57,134.51,0.05558493]
[1767485613749,3.5959083,134.56,134.46,6.6962]
[1767485614050,3.5959083,134.56,134.46,94.5962]
[1767485615049,0.05223423,134.52,134.5,0.05524863]
[1767485616548,3.5959083,134.59,134.5,0.05524863]
[1767485616744,3.5959083,134.59,134.48,104.1514]
[1767485616943,3.5959083,134.62,134.49,104.1425]
[1767485617146,9.00015131,134.61,134.51,6.6936]
[1767485617354,5.40424301,134.6,134.51,6.6936]
[1767485617650,0.05444843,134.57,134.54,0.05718742]
[1767485621358,3.65035673,134.57,134.47,6.6957]
[1767485621554,3.5959083,134.57,134.47,6.6957]
[1767485622555,0.05344333,134.53,134.51,0.0565859]
[1767485624161,0.05344333,134.53,134.46,87.9]
[1767485625762,3.64935163,134.53,134.48,0.05045052]
[1767485628158,3.5959083,134.52,134.41,6.6987]
[1767485628352,3.5959083,134.52,134.42,87.88]
[1767485629264,0.05239296,134.48,134.46,0.05334374]
[1767485634063,3.5959083,134.52,134.46,0.05334374]
[1767485635055,0.05315959,134.5,134.46,0.05334374]
[1767485635867,3.5959083,134.56,134.46,1.53334374]
[1767485636064,3.5959083,134.56,134.45,104.1717]
[1767485636969,0.04887637,134.52,134.49,0.05644227]
[1767485637558,10.2861083,134.59,134.49,1.53644227]
[1767485637766,10.2861083,134.59,134.47,192.0349]
[1767485638069,3.5959083,134.59,134.5,6.6942]
[1767485638363,3.5959083,134.56,134.44,104.1824]
[1767485638661,3.5959083,134.56,134.49,0.05706537]
[1767485639672,0.05029124,134.54,134.49,0.05706537]
[1767485640965,4.01362079,134.54,134.43,6.6975]
[1767485641172,3.96332955,134.54,134.43,6.6975]
[1767485641368,3.96332955,134.52,134.42,87.88]
[1767485642365,0.05213865,134.48,134.46,0.04971411]
[1767485642773,3.96332955,134.52,134.46,0.04971411]
[1767485644174,0.05678429,134.5,134.46,0.04971411]
[1767485644967,4.02011384,134.5,134.42,87.88]
[1767485645163,4.02011384,134.5,134.4,6.6993]
[1767485645367,3.96332955,134.5,134.4,6.6993]
[1767485645880,10.65802955,134.5,134.4,6.6993]
[1767485646075,0.05303317,134.46,134.44,0.05478842]
[1767485647877,3.96332955,134.53,134.44,0.05478842]
[1767485648083,3.96332955,134.53,134.41,104.2027]
[1767485648777,3.96332955,134.53,134.43,6.6976]
[1767485648982,0.05326418,134.49,134.47,0.05187993]
[1767485649587,3.96332955,134.53,134.47,0.05187993]
[1767485650679,0.04754363,134.51,134.47,0.05187993]
[1767485651287,4.01087318,134.51,134.41,104.2027]
[1767485651481,3.96332955,134.51,134.43,6.6976]
[1767485652377,0.05404341,134.48,134.46,0.05632814]
[1767485652579,0.05404341,134.48,134.41,6.6987]
[1767485653178,0.05404341,134.48,134.39,111.88635922]
[1767485653380,3.96332955,134.49,134.39,105.18665922]
[1767485653582,3.96332955,134.49,134.4,104.2125]
[1767485653887,3.96332955,134.49,134.43,0.0507575]
[1767485654086,10.65682955,134.52,134.43,0.0507575]
[1767485654288,10.65682955,134.52,134.42,6.6981]
[1767485654888,0.0527625,134.48,134.46,0.04713628]
[1767485658290,0.0527625,134.48,134.4,6.6992]
[1767485658993,104.1195,134.53,134.4,6.6992]
[1767485658994,3.96332955,134.54,134.45,1.20587056]
[1767485659193,3.96332955,134.53,134.43,104.1889]
[1767485659496,3.96332955,134.53,134.45,1.20587056]
[1767485659680,5.16920011,134.53,134.45,1.20587056]
[1767485660084,5.16920011,134.53,134.48,0.0549395]
[1767485660085,0.04903204,134.5,134.48,0.0549395]
[1767485660498,0.04903204,134.5,134.44,6.6972]
[1767485661601,0.04903204,134.5,134.46,0.05119461]
[1767485670305,3.96332955,134.53,134.46,0.05119461]
[1767485670608,3.91854019,134.56,134.46,104.21499461]
[1767485670795,3.91854019,134.56,134.46,106.93097083]
[1767485671401,91.79854019,134.59,134.5,0.05087131]
[1767485671603,5.47591879,134.58,134.5,0.05087131]
[1767485671812,3.91854019,134.59,134.49,194.80737083]
[1767485672197,3.91854019,134.59,134.51,6.6937]
[1767485672392,3.88155598,134.62,134.51,104.1267]
[1767485672592,9.35268019,134.61,134.51,104.1267]
[1767485672900,0.05309996,134.58,134.55,0.05131501]
[1767485674702,0.05309996,134.58,134.49,194.80737083]
[1767485674703,3.93465594,134.58,134.49,90.66717083]
[1767485674899,3.88155598,134.58,134.49,87.9]
[1767485675910,0.05390729,134.55,134.52,0.04764082]
[1767485680405,0.05390729,134.55,134.49,87.9]
[1767485680810,0.05390729,134.55,134.46,94.5562]
[1767485680811,3.93546327,134.55,134.46,94.5562]
[1767485681013,3.88155598,134.55,134.46,87.86]
[1767485681514,0.05361443,134.52,134.49,0.05070479]
[1767485681710,10.57115598,134.6,134.49,2.81787562]
[1767485681911,10.57115598,134.6,134.5,87.86]
[1767485682607,0.0517636,134.56,134.54,0.05230916]
[1767485683718,3.88155598,134.6,134.54,0.05230916]
[1767485684716,0.05580428,134.58,134.54,0.05230916]
[1767485698128,3.88155598,134.63,134.54,87.89230916]
[1767485698328,3.88155598,134.63,134.54,87.84]
[1767485698526,3.88155598,134.63,134.56,6.6912]
[1767485698933,3.88155598,134.63,134.54,87.84]
[1767485699128,0.04890782,134.6,134.57,0.05288306]
[1767485700830,3.9811623,134.66,134.57,0.05288306]
[1767485701024,3.9811623,134.66,134.56,104.0884]
[1767485701222,3.9811623,134.66,134.57,104.0812]
[1767485701426,3.9811623,134.68,134.58,87.84]
[1767485701933,0.0471629,134.64,134.62,0.05674049]
[1767485702330,3.9811623,134.73,134.62,87.89674049]
[1767485702530,3.9811623,134.71,134.62,87.84]
[1767485703335,4.03080174,134.68,134.62,87.84]
[1767485704235,4.03080174,134.68,134.59,94.5097]
[1767485704443,103.9756,134.71,134.59,94.5097]
[1767485704444,3.9811623,134.71,134.64,1.20161277]
[1767485704738,3.9811623,134.71,134.63,1.20161277]
[1767485704946,3.9811623,134.71,134.62,1.20161277]
[1767485705539,0.05433595,134.68,134.65,0.05684136]
[1767485705734,3.9811623,134.71,134.65,0.05684136]
[1767485705935,3.9811623,134.69,134.63,87.82]
[1767485707445,0.04953621,134.67,134.65,0.04973025]
[1767485707634,10.6649623,134.72,134.65,0.04973025]
[1767485707835,3.9811623,134.71,134.65,0.04973025]
[1767485708445,3.9811623,134.7,134.59,8.56751012]
[1767485708642,3.9811623,134.7,134.59,96.36751012]
[1767485709149,3.9811623,134.64,134.54,104.1009]
[1767485709440,0.05492469,134.6,134.5,106.00931012]
[1767485709644,3.9811623,134.6,134.52,87.8]
[1767485710634,0.0471418,134.57,134.55,0.05718695]
[1767485711942,3.9811623,134.63,134.55,0.05718695]
[1767485712248,3.9811623,134.63,134.52,191.9169]
[1767485712654,3.9811623,134.63,134.52,87.8]
[1767485712655,3.9811623,134.62,134.52,87.8]
[1767485713049,3.9811623,134.62,134.56,0.05159541]
[1767485713253,0.05232399,134.58,134.56,0.05159541]
[1767485713756,3.9811623,134.64,134.56,0.05159541]
[1767485713947,3.9811623,134.64,134.52,191.9167]
[1767485714753,0.05222602,134.59,134.57,0.04973275]
[1767485714953,0.04755466,134.59,134.57,0.04973275]
[1767485717557,0.04755466,134.59,134.53,6.6926]
[1767485718656,0.04755466,134.59,134.55,0.04909007]
[1767485719054,4.02871696,134.59,134.55,0.04909007]
[1767485720370,4.02871696,134.59,134.51,6.6937]
[1767485720957,4.02871696,134.59,134.5,87.82]
[1767485721156,3.9811623,134.59,134.5,87.82]
[1767485721456,0.0503334,134.56,134.53,0.05103096]
[1767485722759,3.9811623,134.62,134.53,105.64273096]
[1767485722959,3.9811623,134.65,134.53,104.1117]
[1767485723767,3.9811623,134.65,134.58,0.04774304]
[1767485724471,3.9811623,134.62,134.54,87.82]
[1767485725468,3.9811623,134.62,134.57,0.05104955]
[1767485725667,3.9811623,134.6,134.51,0.0376968]
[1767485725869,3.9811623,134.6,134.51,87.8576968]
[1767485726271,10.6687623,134.64,134.54,0.03798687]
[1767485726573,3.9811623,134.68,134.56,0.03798687]
[1767485726763,9.42718614,134.67,134.58,0.08750844]
[1767485726958,3.9811623,134.67,134.61,0.05637404]
[1767485728372,3.9811623,134.7,134.61,0.05637404]
[1767485728565,3.9811623,134.69,134.6,94.5474736]
[1767485728760,4.02938219,134.67,134.6,87.82]
[1767485729378,4.02938219,134.67,134.58,87.91446272]
[1767485729676,0.05217491,134.64,134.61,0.04830241]
[1767485731369,0.05217491,134.64,134.58,87.82]
[1767485732072,3.80464601,134.64,134.58,87.82]
[1767485732370,3.80464601,134.64,134.56,6.78497275]
[1767485732566,3.80464601,134.64,134.59,0.04874223]
[1767485736273,0.05217491,134.64,134.59,0.04874223]
[1767485737371,3.80464601,134.64,134.59,0.04874223]
[1767485737676,3.80464601,134.64,134.55,87.94399033]
[1767485737878,3.7524711,134.64,134.55,87.94399033]
[1767485738873,0.05167674,134.61,134.58,0.04690805]
[1767485739472,10.4391711,134.66,134.58,0.04690805]
[1767485739883,3.7524711,134.65,134.58,0.04690805]
[1767485741377,10.4396711,134.65,134.58,0.04690805]
[1767485741679,3.7524711,134.64,134.56,6.6913]
[1767485741874,3.7524711,134.62,134.51,0.24037691]
[1767485742673,0.0529256,134.58,134.55,0.05492282]
[1767485743981,5.2853967,134.58,134.47,0.29568366]
[1767485744178,5.2853967,134.58,134.45,104.1699]
[1767485744179,3.7524711,134.57,134.45,104.1699]
[1767485744370,3.7524711,134.57,134.45,192.28578641]
[1767485744570,10.4437711,134.57,134.46,6.6964]
[1767485744778,3.7524711,134.56,134.47,0.29588641]
[1767485744972,0.05532455,134.53,134.5,0.04953095]
[1767485746878,0.05532455,134.53,134.47,6.6956]
[1767485747080,0.05532455,134.53,134.45,191.9899]
[1767485747081,0.05532455,134.53,134.45,198.6867]
[1767485747286,0.05532455,134.53,134.45,94.5168]
[1767485747480,3.80779565,134.53,134.45,94.86290548]
[1767485747784,3.80779565,134.53,134.48,0.04750684]
[1767485748086,3.80779565,134.53,134.43,87.82]
[1767485748286,3.7524711,134.53,134.43,88.21389856]
[1767485749181,0.04719155,134.49,134.47,0.04841125]
[1767485752782,6.6911,134.57,134.47,0.04841125]
[1767485752990,3.7524711,134.6,134.48,0.34830914]
[1767485753184,3.7524711,134.58,134.47,87.84]
[1767485753384,10.4433711,134.58,134.48,6.695]
[1767485753689,3.7524711,134.57,134.48,6.695]
[1767485753887,0.05331107,134.54,134.51,0.05571088]